fUSD/lending_fUSD_20240408
["ID","MTS","AMOUNT","RATE_DAILY","PERIOD"]
[321907871,1712608504421,150.5,0.00024501,15]
[321907872,1712608504606,150.5,0.0002492,15]
[321907873,1712608505127,150.5,0.0002491,15]
[321907874,1712608505778,150.5,0.000249,15]
[321907875,1712608507350,150.20297643,0.00024776,15]
[321907876,1712608580180,777.02,0.0001744,2]
[321907878,1712608714721,1283.92,0.00024329,15]
[321907881,1712608743652,186.82,0.00024572,15]
[321907882,1712608743987,188.82,0.00024582,15]
[321907884,1712608863231,186.82,0.0002451,15]
[321907885,1712609104633,150.5,0.00021346,15]
[321907886,1712609105105,150.5,0.00021336,15]
[321907887,1712609105588,150.5,0.00021346,15]
[321907888,1712609105630,275.5,0.00021326,15]
[321907889,1712609106138,150.5,0.00021336,15]
[321907890,1712609107532,150.5,0.00021326,15]
[321907891,1712609107625,150.5,0.0002492,15]
[321907892,1712609107727,281.09,0.0002491,15]
[321907893,1712609189794,1203.67,0.00024329,15]
[321907894,1712609227902,738.16,0.00017127,2]
[321907897,1712609248259,300.0,0.000197,7]
[321907898,1712609250409,600.0,0.000198,7]
[321907899,1712609252513,900.0,0.000199,7]
[321907979,1712609432238,-486.13738985,0.00018945,2]
[321907980,1712609432248,-1724.65680781,0.00018951,2]
[321907981,1712609432588,-2672.23743011,0.00018951,2]
[321907982,1712609432597,-2322.91,0.00018952,2]
[321907983,1712609432606,-172.9,0.00018961,2]
[321907984,1712609432615,-1843.62,0.00018992,2]
[321907985,1712609432627,-1806.36256989,0.0001903,2]
[321907989,1712609432651,-555.59983011,0.0001903,2]
[321907991,1712609432660,-237.81308272,0.00019031,2]
[321907994,1712609432684,-12.18691728,0.00019031,2]
[321907996,1712609432693,-735.80056117,0.00019062,2]
[321907998,1712609432703,-223.99548805,0.00019063,2]
[321908016,1712609432864,-299.43451195,0.00019063,2]
[321908018,1712609432873,-200.0,0.00019145,2]
[321908020,1712609432882,-1000.0,0.00019204,2]
[321908022,1712609432891,-499.99,0.00019204,2]
[321908024,1712609432900,-317.13,0.00019204,2]
[321908026,1712609432910,-161.45,0.00019324,2]
[321908028,1712609432919,-738.16,0.00019391,2]
[321908030,1712609432929,-169.79,0.00019645,2]
[321908032,1712609432938,-4347.41774083,0.00019898,2]
[321908034,1712609432948,-255.4897,0.00019899,2]
[321908036,1712609432957,-23337.8217,0.000199,2]
[321908038,1712609432966,-9796.58855027,0.00019957,2]
[321908040,1712609432975,-586.37521928,0.00019971,2]
[321908042,1712609432984,-4021.64258558,0.00019972,2]
[321908044,1712609432994,-2500.0,0.00019972,2]
[321908046,1712609433003,-1000.0,0.00019972,2]
[321908048,1712609433012,-22708.90003182,0.00019998,2]
[321908050,1712609433021,-33528.85154075,0.00019999,2]
[321908052,1712609433030,-18140.66402282,0.0002,2]
[321908055,1712609433042,-223.10295971,0.0002,2]
[321908057,1712609433050,-178.85,0.00020062,2]
[321908059,1712609433059,-559.62571145,0.00020067,2]
[321908061,1712609433068,-2274.6825,0.00020071,2]
[321908063,1712609433077,-6093.42718009,0.00020072,2]
[321908066,1712609433125,-2812.3572511,0.00020072,2]
[321908067,1712609433136,-930.9300002,0.00020072,2]
[321908073,1712609438269,-155.0,0.00018944,2]
[321908074,1712609438278,-4845.0,0.00019972,2]
[321908075,1712609438324,-17653.54870932,0.00019972,2]
[321908076,1712609438335,-326.38485133,0.00019972,2]
[321908077,1712609438380,-19762.08470906,0.00019972,2]
[321908078,1712609438389,-11350.35529094,0.00020072,2]
[321908079,1712609438439,-848.60492489,0.00020072,2]
[321908080,1712609438621,-11724.06276895,0.00020072,2]
[321908147,1712609440691,-2831.05512547,0.00020072,2]
[321908148,1712609440974,-537.75499997,0.00020072,2]
[321908149,1712609441106,-25389.46000001,0.00020072,2]
[321908161,1712609443300,-2848.42343015,0.00020072,2]
[321908162,1712609443467,-7174.39152714,0.00020072,2]
[321908163,1712609443526,-708.7638365,0.00020072,2]
[321908164,1712609443537,-902.20000025,0.00020072,2]
[321908165,1712609443586,-369.5463502,0.00020072,2]
[321908172,1712609446340,-4411.09951554,0.00020071,2]
[321908173,1712609446350,-486.13738985,0.00020071,2]
[321908174,1712609446359,-25478.66731414,0.00020072,2]
[321908175,1712609446369,-37957.12438401,0.00020072,2]
[321908182,1712609523252,1724.84,0.000155,2]
[321908183,1712609530028,799.34121299,0.00015054,2]
[321908184,1712609583864,150.5,0.0002089,15]
[321908185,1712609584296,200.85,0.0002088,15]
[321908186,1712609594183,1371.45451449,0.00015054,2]
[321908187,1712609610196,828.70245305,0.00015054,2]
[321908191,1712609669228,27793.12181947,0.00015,2]
[321908192,1712609669257,8206.87818053,0.00015,2]
[321908198,1712609678468,1128.44,0.00024329,15]
[321908236,1712609927192,740.17,0.00016553,2]
[321908244,1712609978772,864.54060538,0.00016553,2]
[321908245,1712609992733,294.18988452,0.00016553,2]
[321908249,1712610151171,1057.91,0.00024329,15]
[321908252,1712610314460,611.787716,0.00017938,2]
[321908258,1712610385060,500.0,0.00017935,2]
[321908259,1712610386636,799.34121299,0.00013454,2]
[321908260,1712610390315,1371.45451449,0.00017938,2]
[321908261,1712610409025,828.70245305,0.00017938,2]
[321908262,1712610415771,754.83,0.00017697,2]
[321908263,1712610424297,894.75,0.00015775,2]
[321908343,1712610582054,162.93886819,0.00017911,2]
[321908369,1712610631975,-500.0,0.00018005,2]
[321908370,1712610631985,-664.37829357,0.00018006,2]
[321908371,1712610631996,-426.14410958,0.00018006,2]
[321908372,1712610632007,-155.0,0.00018007,2]
[321908373,1712610632016,-1.20143667,0.00018007,2]
[321908374,1712610632122,-1240.22431423,0.00018007,2]
[321908375,1712610632132,-155.0,0.00018008,2]
[321908376,1712610632142,-251.00256486,0.00018009,2]
[321908378,1712610632152,-738.0,0.00018017,2]
[321908379,1712610632161,-536.49080227,0.00018025,2]
[321908380,1712610632171,-894.75,0.00018039,2]
[321908381,1712610632181,-150.0,0.00018104,2]
[321908382,1712610632191,-1782.4,0.00018105,2]
[321908383,1712610632200,-620.21,0.00018106,2]
[321908384,1712610632210,-200.0,0.00018114,2]
[321908385,1712610632218,-389.27,0.00018117,2]
[321908386,1712610632228,-23890.0,0.00018174,2]
[321908387,1712610632238,-250.0,0.00018199,2]
[321908388,1712610632248,-167.8,0.00018283,2]
[321908389,1712610632258,-167.8,0.00018313,2]
[321908390,1712610632267,-155.47,0.00018322,2]
[321908391,1712610632277,-167.8,0.00018344,2]
[321908392,1712610632286,-167.8,0.00018374,2]
[321908393,1712610632295,-150.0,0.00018466,2]
[321908394,1712610632305,-1000.0,0.00018547,2]
[321908395,1712610632315,-151.61319479,0.000186,2]
[321908396,1712610632325,-879.03,0.0001873,2]
[321908397,1712610632335,-163.78,0.000188,2]
[321908398,1712610632344,-10293.14,0.00018839,2]
[321908399,1712610632354,-1476.5418444,0.00019,2]
[321908400,1712610632364,-2349.93858112,0.00019042,2]
[321908401,1712610632373,-9483.4408,0.00019059,2]
[321908402,1712610632383,-11046.43393158,0.00019159,2]
[321908403,1712610632392,-18715.79805901,0.0001916,2]
[321908404,1712610632402,-1314.19419494,0.00019161,2]
[321908405,1712610632411,-364.38794181,0.00019161,2]
[321908406,1712610632421,-463.5859,0.00019772,2]
[321908407,1712610632430,-198.6880857,0.00019798,2]
[321908409,1712610632440,-2399.1918,0.0001987,2]
[321908411,1712610632449,-2399.1918,0.0001987,2]
[321908413,1712610632458,-2399.1918,0.0001987,2]
[321908415,1712610632467,-2399.1918,0.0001987,2]
[321908416,1712610632476,-2399.1918,0.0001987,2]
[321908418,1712610632485,-2399.1918,0.0001987,2]
[321908420,1712610632495,-597.8368,0.00019872,2]
[321908423,1712610632505,-2500.0,0.00019872,2]
[321908424,1712610632514,-1000.0,0.00019872,2]
[321908425,1712610632523,-1557.13821223,0.00019889,2]
[321908426,1712610632532,-6543.92038611,0.00019889,2]
[321908427,1712610632541,-47349.5610168,0.00019889,2]
[321908428,1712610632550,-342.37210086,0.00019897,2]
[321908429,1712610632560,-537.76646111,0.00019897,2]
[321908430,1712610632569,-661.93449309,0.00019898,2]
[321908431,1712610632578,-501.81720493,0.000199,2]
[321908432,1712610632587,-178.85,0.00019962,2]
[321908433,1712610632597,-168.43,0.00019962,2]
[321908434,1712610632607,-9277.65733496,0.00019967,2]
[321908435,1712610632616,-3324.68184629,0.00019971,2]
[321908436,1712610632626,-100000.0,0.00019972,2]
[321908437,1712610632635,-36459.70498738,0.00019999,2]
[321908438,1712610632647,-27847.0306,0.00019999,2]
[321908439,1712610632658,-180693.26441262,0.00019999,2]
[321908440,1712610632667,-500.0,0.00019999,2]
[321908441,1712610632677,-162.93886819,0.00019999,2]
[321908442,1712610632686,-471.040906,0.00020009,2]
[321908443,1712610632695,-477.53380179,0.00020072,2]
[321908444,1712610632704,-441.06109,0.00020072,2]
[321908445,1712610632714,-3641.126,0.00020072,2]
[321908446,1712610632723,-5892.0641762,0.00020075,2]
[321908447,1712610632732,-159.74220782,0.00020089,2]
[321908448,1712610632743,-471.040906,0.00020089,2]
[321908449,1712610632752,-217840.93053117,0.00020099,2]
[321908450,1712610632761,-471.040906,0.00020099,2]
[321908451,1712610632771,-13382.76046568,0.000201,2]
[321908452,1712610632780,-174.66297084,0.000201,2]
[321908453,1712610632789,-173.72120905,0.000201,2]
[321908454,1712610632799,-1000.0,0.000201,2]
[321908455,1712610632808,-471.040906,0.000201,2]
[321908456,1712610632817,-7500.0,0.000201,2]
[321908457,1712610632828,-471.040906,0.00020109,2]
[321908458,1712610632837,-207.39095855,0.00020161,2]
[321908459,1712610632846,-285.75356118,0.00020161,2]
[321908460,1712610632855,-483.59331602,0.00020169,2]
[321908461,1712610632864,-201.75629947,0.00020169,2]
[321908462,1712610632874,-3997.54865621,0.00020169,2]
[321908463,1712610632886,-166.84811033,0.00020169,2]
[321908464,1712610632896,-619.85903412,0.00020169,2]
[321908465,1712610632906,-362.19769809,0.00020169,2]
[321908466,1712610632917,-8881.02491519,0.00020169,2]
[321908467,1712610632926,-5581.46567885,0.00020169,2]
[321908468,1712610632935,-407.93141682,0.00020169,2]
[321908469,1712610632944,-977.42131204,0.00020169,2]
[321908470,1712610632954,-913.85273637,0.00020169,2]
[321908471,1712610632964,-152.95966906,0.00020169,2]
[321908472,1712610632973,-238.80007358,0.0002017,2]
[321908473,1712610632982,-210.0107731,0.0002017,2]
[321908474,1712610632992,-128042.97927966,0.000202,2]
[321908475,1712610633055,-40465.21837418,0.000202,2]
[321908476,1712610633067,-1242.11965083,0.000202,2]
[321908477,1712610633273,-661.87135703,0.000202,2]
[321908493,1712610638098,-263.14036967,0.00018005,2]
[321908494,1712610638108,-250.0,0.00019556,2]
[321908496,1712610638117,-2421.92094683,0.000202,2]
[321908498,1712610638128,-21553.86611183,0.000202,2]
[321908538,1712610639120,-371841.9286688,0.000202,2]
[321908539,1712610639132,-652.302,0.000202,2]
[321908540,1712610639144,-536.83059283,0.000202,2]
[321908541,1712610639176,-36059.67892,0.000202,2]
[321908590,1712610640688,-645.92349664,0.000202,2]
[321908591,1712610640701,-518.0,0.000202,2]
[321908592,1712610640715,-5488.07290054,0.000202,2]
[321908593,1712610640728,-6779.01080001,0.000202,2]
[321908594,1712610640751,-300.20255347,0.000202,2]
[321908595,1712610640763,-2151.26065017,0.000202,2]
[321908596,1712610640862,-658.090015,0.000202,2]
[321908597,1712610640930,-1423.47518049,0.000202,2]
[321908598,1712610640942,-679.06810593,0.000202,2]
[321908599,1712610641074,-2642.15021336,0.000202,2]
[321908600,1712610641090,-7496.33921841,0.000202,2]
[321908612,1712610642601,-698.369695,0.000202,2]
[321908613,1712610642614,-293.46971458,0.000202,2]
[321908614,1712610642654,-633.68000004,0.000202,2]
[321908615,1712610642772,-6744.4,0.000202,2]
[321908616,1712610642783,-71117.64,0.000202,2]
[321908617,1712610642799,-1825.78554382,0.000202,2]
[321908618,1712610642883,-412.74691942,0.000202,2]
[321908619,1712610642995,-3047.39838775,0.000202,2]
[321908629,1712610645522,-1788.57023982,0.00020199,2]
[321908630,1712610645634,-6926.86054705,0.00020199,2]
[321908631,1712610645690,-15759.18892753,0.00020199,2]
[321908632,1712610645699,-215.79764454,0.00020199,2]
[321908633,1712610645709,-255.88701942,0.00020199,2]
[321908634,1712610645718,-54566.0574759,0.000202,2]
[321908635,1712610645727,-178.85,0.00020261,2]
[321908636,1712610645736,-307.07568995,0.00020269,2]
[321908637,1712610645745,-155.32400361,0.00020269,2]
[321908638,1712610645754,-3386.46369865,0.00020269,2]
[321908639,1712610645763,-168.60427734,0.00020269,2]
[321908640,1712610645772,-1300.87694258,0.00020269,2]
[321908641,1712610645781,-5570.82660135,0.00020269,2]
[321908642,1712610645792,-603.63650534,0.00020269,2]
[321908643,1712610646401,-425.78660096,0.00020199,2]
[321908644,1712610646413,-5620.42817741,0.00020269,2]
[321908645,1712610646423,-6188.4603528,0.00020269,2]
[321908646,1712610646433,-194.59346269,0.0002027,2]
[321908647,1712610646443,-6530.57598303,0.0002027,2]
[321908648,1712610646452,-1503.83604202,0.0002027,2]
[321908649,1712610646461,-155.18531998,0.0002027,2]
[321908650,1712610646472,-444.11953608,0.00020271,2]
[321908651,1712610646481,-8503.88602506,0.00020271,2]
[321908652,1712610646494,-3941.63922452,0.00020271,2]
[321908653,1712610646505,-1906.81788678,0.00020271,2]
[321908692,1712610687311,991.79,0.00024329,15]
[321908700,1712610955101,839.0,0.00017147,2]
[321908703,1712611031579,545.75727212,0.00017147,2]
[321908704,1712611043582,461.22698185,0.00017147,2]
[321908715,1712611183171,929.8,0.00024329,15]
[321908716,1712611222393,2605.0,0.00021,4]
[321908726,1712611466685,829.1,0.00016585,2]
[321908727,1712611510063,-442.91886238,0.00018573,2]
[321908728,1712611510085,-500.0,0.00018573,2]
[321908729,1712611510108,-155.0,0.00018574,2]
[321908730,1712611510131,-150.0,0.00018575,2]
[321908731,1712611510157,-1367.08113762,0.00018576,2]
[321908734,1712611563043,-1500.0,0.00018575,2]
[321908735,1712611563410,-1561.0,0.00018576,2]
[321908736,1712611595116,-369.09905198,0.00018575,2]
[321908737,1712611595141,-500.0,0.00018575,2]
[321908738,1712611595165,-6481.90094802,0.00018576,2]
[321908739,1712611625698,-2490.01791436,0.00018576,2]
[321908740,1712611625721,-409.98208564,0.00018586,2]
[321908755,1712611664412,-369.09905198,0.00018585,2]
[321908756,1712611664434,-1590.01791436,0.00018586,2]
[321908757,1712611664457,-310.1,0.00018631,2]
[321908758,1712611664480,-1343.45,0.00018659,2]
[321908759,1712611664504,-3222.33303366,0.00018688,2]
[321908760,1712611719771,-11816.0,0.00018688,2]
[321908778,1712611761771,871.68,0.00024329,15]
[321908813,1712611831719,-895.3,0.00018594,2]
[321908814,1712611831729,-192.30060608,0.00018626,2]
[321908815,1712611831738,-162.1561284,0.00018627,2]
[321908816,1712611831748,-1780.28129922,0.00018652,2]
[321908817,1712611831758,-20697.67,0.00018653,2]
[321908818,1712611831767,-250.0,0.00018727,2]
[321908819,1712611831777,-200.0,0.00018776,2]
[321908820,1712611831786,-479.57,0.00018786,2]
[321908821,1712611831795,-829.1,0.00018849,2]
[321908822,1712611831805,-155.45,0.00018852,2]
[321908823,1712611831814,-150.99,0.00018988,2]
[321908824,1712611831823,-1000.0,0.00019032,2]
[321908825,1712611831833,-499.99,0.00019032,2]
[321908826,1712611831843,-311.06,0.00019114,2]
[321908827,1712611831852,-172.9,0.00019146,2]
[321908828,1712611831862,-162.15612838,0.000192,2]
[321908829,1712611831871,-167.0,0.0001925,2]
[321908830,1712611831880,-159.13,0.00019551,2]
[321908831,1712611831889,-500.0,0.00019558,2]
[321908832,1712611831899,-174906.25159889,0.00019559,2]
[321908833,1712611831908,-11816.02404829,0.0001956,2]
[321908834,1712611831917,-43349.7476736,0.00019561,2]
[321908835,1712611831927,-1991.58466471,0.00019661,2]
[321908842,1712611832698,-646.55590795,0.00019558,2]
[321908843,1712611832707,-500.0,0.00019558,2]
[321908844,1712611832716,-500.0,0.00019558,2]
[321908845,1712611832725,-1999.41533529,0.00019661,2]
[321908846,1712611832734,-157.923262,0.0001967,2]
[321908847,1712611832743,-6196.10549476,0.00019672,2]
[321908848,1712611832848,-568.29707037,0.00019558,2]
[321908849,1712611832857,-500.0,0.00019558,2]
[321908850,1712611832866,-500.0,0.00019558,2]
[321908851,1712611832875,-604.7458368,0.00019672,2]
[321908852,1712611832884,-1873.43658984,0.00019672,2]
[321908853,1712611832894,-1047.7823,0.00019672,2]
[321908854,1712611832903,-2500.0,0.00019672,2]
[321908855,1712611832912,-460.19313649,0.0001977,2]
[321908856,1712611832921,-283.05577076,0.0001977,2]
[321908857,1712611832930,-23519.09586318,0.00019771,2]
[321908858,1712611832939,-162.15612838,0.00019772,2]
[321908859,1712611832948,-500.0,0.00019772,2]
[321908860,1712611832957,-65088.73711769,0.00019772,2]
[321908861,1712611832968,-4879.85032865,0.00019772,2]
[321908862,1712611832991,-660.78,0.00019772,2]
[321908863,1712611833003,-271.2999999,0.00019772,2]
[321908864,1712611833044,-500.0,0.00019558,2]
[321908865,1712611833053,-335.21364132,0.00019772,2]
[321908866,1712611833065,-1377.45319305,0.00019772,2]
[321908867,1712611833148,-18847.84963378,0.00019772,2]
[321908868,1712611833162,-1188.16700002,0.00019772,2]
[321908869,1712611833175,-7350.64908559,0.00019772,2]
[321908870,1712611833185,-335.7407,0.00019772,2]
[321908871,1712611833194,-488.5322,0.00019772,2]
[321908872,1712611833204,-150.0,0.00019825,2]
[321908873,1712611833213,-292.23,0.0001983,2]
[321908874,1712611833222,-155.45,0.00019835,2]
[321908875,1712611833231,-159.13,0.00019862,2]
[321908876,1712611833241,-51.09799022,0.0001987,2]
[321908877,1712611833259,-4138.84387601,0.0001987,2]
[321908878,1712611833270,-273.50697903,0.0001987,2]
[321908879,1712611833279,-258.58083684,0.00019871,2]
[321908880,1712611833288,-6795.87498793,0.00019872,2]
[321908881,1712611833302,-1410.2626,0.00019872,2]
[321908882,1712611833314,-572.92685355,0.00019872,2]
[321908900,1712611838077,-192.30060608,0.00018593,2]
[321908902,1712611838086,-312.46097218,0.00019772,2]
[321908904,1712611838096,-150.0,0.00019845,2]
[321908906,1712611838106,-143214.39330858,0.00019872,2]
[321908908,1712611838117,-11827.7989975,0.00019872,2]
[321908936,1712611838277,-18528.48030701,0.00019872,2]
[321908938,1712611838290,-361.675,0.00019872,2]
[321908944,1712611838338,-62288.58794543,0.00019872,2]
[321908946,1712611838348,-1980.2206,0.00019872,2]
[321908948,1712611838357,-1761.90527738,0.0002,2]
[321908950,1712611838366,-155.34406203,0.00020068,2]
[321908952,1712611838375,-367.55091,0.0002007,2]
[321908954,1712611838384,-7500.0,0.00020171,2]
[321908956,1712611838393,-174.66297083,0.00020171,2]
[321908958,1712611838403,-12267.5304268,0.00020171,2]
[321908960,1712611838412,-173.72120902,0.00020171,2]
[321908962,1712611838422,-153.91852874,0.00020171,2]
[321908964,1712611838431,-299.5502891,0.00020198,2]
[321908966,1712611838440,-403.55480436,0.00020199,2]
[321908968,1712611838450,-425.45923219,0.00020199,2]
[321908970,1712611838460,-471.040906,0.00020209,2]
[321908972,1712611838469,-43349.74767358,0.00020238,2]
[321908974,1712611838479,-4568.12840899,0.00020251,2]
[321908976,1712611838488,-335.29076952,0.00020259,2]
[321908978,1712611838497,-159.13,0.00020261,2]
[321908980,1712611838506,-159.13,0.00020261,2]
[321908981,1712611838515,-2844.8629843,0.00020261,2]
[321908982,1712611838524,-9565.6343431,0.00020261,2]
[321908983,1712611838534,-2054.8384931,0.00020261,2]
[321908984,1712611838544,-10272.46238671,0.00020261,2]
[321908986,1712611838651,-1855.76795544,0.00020261,2]
[321908987,1712611838662,-3584.56823158,0.00020261,2]
[321909001,1712611839717,-8260.25680458,0.00020261,2]
[321909006,1712611843213,-14373.44416621,0.00020261,2]
[321909007,1712611843253,-358.911,0.00020261,2]
[321909008,1712611843292,-1013.834,0.00020261,2]
[321909009,1712611843324,-659.549999,0.00020261,2]
[321909010,1712611843337,-1910.0,0.00020261,2]
[321909011,1712611843360,-1240.87313561,0.00020261,2]
[321909012,1712611843410,-636.58999992,0.00020261,2]
[321909013,1712611843421,-740.33431778,0.00020261,2]
[321909015,1712611845704,-155.34406204,0.00020068,2]
[321909017,1712611845714,-383.79691696,0.0002026,2]
[321909024,1712611845895,-141.5727657,0.0002026,2]
[321909025,1712611845906,-1765.48268369,0.0002026,2]
[321909026,1712611845916,-18662.29235167,0.00020261,2]
[321909027,1712611845925,-2792.774006,0.00020261,2]
[321909028,1712611845934,-3695.266,0.00020264,2]
[321909029,1712611845943,-155.0,0.0002027,2]
[321909030,1712611845952,-206.59266165,0.0002027,2]
[321909031,1712611845961,-5825.99102334,0.0002027,2]
[321909032,1712611845970,-300.0,0.0002027,2]
[321909033,1712611845979,-300.0,0.0002027,2]
[321909034,1712611845988,-300.0,0.0002027,2]
[321909035,1712611845998,-300.0,0.0002027,2]
[321909036,1712611846007,-300.0,0.0002027,2]
[321909037,1712611846016,-300.0,0.0002027,2]
[321909038,1712611846026,-300.0,0.0002027,2]
[321909039,1712611846035,-300.0,0.0002027,2]
[321909040,1712611846045,-36252.27850798,0.00020271,2]
[321909041,1712611846065,-909.13918387,0.00020271,2]
[321909042,1712612048881,807.07,0.00017151,2]
[321909043,1712612246603,214.45296291,0.00012863,2]
[321909044,1712612250071,817.2,0.00024329,15]
[321909045,1712612257937,951.45483861,0.00016293,2]
[321909046,1712612264837,217.44917219,0.00017602,2]
[321909047,1712612267561,747.70725432,0.00017602,2]
[321909048,1712612322700,407.62680589,0.00017602,2]
[321909049,1712612342697,260.09163204,0.00017602,2]
[321909050,1712612533322,1038.04438346,0.00017602,2]
[321909051,1712612533802,799.68,0.00016803,2]
[321909052,1712612570669,11415.74160047,0.00016803,2]
[321909053,1712612727503,766.12,0.00024329,15]
[321909197,1712613024894,789.36,0.00016265,2]
[321909205,1712613031914,-263.14036967,0.00018223,2]
[321909206,1712613031923,-192.30060608,0.00018224,2]
[321909207,1712613031933,-217.54377833,0.00018225,2]
[321909208,1712613031942,-1780.28129922,0.00018226,2]
[321909209,1712613031952,-447.07544994,0.00018226,2]
[321909210,1712613031961,-1780.28129922,0.00018226,2]
[321909211,1712613031970,-1780.28129922,0.00018226,2]
[321909212,1712613031980,-1780.28129922,0.00018226,2]
[321909213,1712613031989,-700.65,0.00018227,2]
[321909214,1712613031999,-207.27012817,0.00018281,2]
[321909215,1712613032008,-155.0,0.00018281,2]
[321909216,1712613032018,-206.27456611,0.00018281,2]
[321909217,1712613032027,-180.72667919,0.00018281,2]
[321909218,1712613032037,-23900.0,0.00018288,2]
[321909219,1712613032046,-11900.0,0.00018294,2]
[321909220,1712613032055,-789.36,0.00018529,2]
[321909221,1712613032066,-1042.67964763,0.00018596,2]
[321909222,1712613032075,-334.3,0.00018616,2]
[321909223,1712613032084,-2996.90487818,0.0001878,2]
[321909224,1712613032094,-35434.95445037,0.00018847,2]
[321909225,1712613032103,-7561.88490796,0.0001887,2]
[321909226,1712613032113,-624.20728815,0.00018942,2]
[321909227,1712613032122,-201.29185456,0.00018944,2]
[321909228,1712613032131,-155.87962039,0.00018944,2]
[321909229,1712613032141,-407.93141682,0.00018944,2]
[321909230,1712613032150,-2018.29327895,0.00018944,2]
[321909231,1712613032159,-193.75811988,0.00018944,2]
[321909232,1712613032168,-3372.0620942,0.00018944,2]
[321909233,1712613032178,-407.1301357,0.00018945,2]
[321909234,1712613032187,-169918.16059872,0.00018946,2]
[321909235,1712613032196,-1000.0,0.0001897,2]
[321909236,1712613032205,-720.12,0.00019069,2]
[321909237,1712613032215,-500.0,0.00019178,2]
[321909238,1712613032224,-500.0,0.00019178,2]
[321909239,1712613032233,-179.36520482,0.00019178,2]
[321909240,1712613032243,-448.75,0.0001918,2]
[321909241,1712613032252,-1500.0,0.00019369,2]
[321909242,1712613032261,-1500.0,0.00019382,2]
[321909243,1712613032270,-727.9399086,0.00019394,2]
[321909244,1712613032279,-165.71746394,0.00019458,2]
[321909245,1712613032289,-620.31159771,0.00019458,2]
[321909246,1712613032298,-1125.41559954,0.00019458,2]
[321909247,1712613032307,-8366.913355,0.00019458,2]
[321909248,1712613032316,-3670.292,0.00019459,2]
[321909249,1712613032325,-301.03847201,0.0001946,2]
[321909251,1712613032335,-3678.806,0.00019547,2]
[321909253,1712613032344,-448.75,0.0001955,2]
[321909255,1712613032353,-3610.065,0.00019552,2]
[321909257,1712613032363,-4111.76068936,0.00019557,2]
[321909259,1712613032372,-414.44740989,0.00019558,2]
[321909261,1712613032382,-509.12480574,0.00019559,2]
[321909262,1712613032390,-218.19634531,0.00019559,2]
[321909264,1712613032400,-125681.2557,0.0001956,2]
[321909265,1712613032409,-1000.0,0.0001956,2]
[321909266,1712613032418,-73180.8739,0.0001956,2]
[321909267,1712613032427,-7561.88490789,0.00019593,2]
[321909268,1712613032437,-35434.95445029,0.00019603,2]
[321909270,1712613032446,-3713.89,0.00019938,2]
[321909272,1712613032455,-301.0384719,0.00019961,2]
[321909274,1712613032465,-640.08300789,0.0002,2]
[321909276,1712613032474,-817.33423141,0.0002,2]
[321909278,1712613032483,-2520.0000009,0.00020011,2]
[321909280,1712613032494,-382.44394782,0.00020066,2]
[321909282,1712613032504,-154.96356101,0.00020068,2]
[321909283,1712613032514,-306.29243,0.0002007,2]
[321909284,1712613032523,-1000.0,0.00020109,2]
[321909285,1712613032533,-500.0,0.00020109,2]
[321909286,1712613032543,-7500.0,0.00020171,2]
[321909287,1712613032552,-150.49607508,0.00020171,2]
[321909288,1712613032563,-198.90752935,0.00020171,2]
[321909289,1712613032573,-171.02613633,0.00020181,2]
[321909290,1712613032582,-471.040906,0.00020199,2]
[321909291,1712613032591,-471.040906,0.00020209,2]
[321909292,1712613032600,-189.35,0.00020227,2]
[321909293,1712613032609,-471.040906,0.00020239,2]
[321909294,1712613032619,-471.040906,0.00020249,2]
[321909295,1712613032628,-1500.0,0.00020256,2]
[321909296,1712613032638,-337.63597923,0.00020259,2]
[321909297,1712613032647,-164.57111526,0.00020259,2]
[321909298,1712613032657,-471.040906,0.00020259,2]
[321909299,1712613032666,-3425.22102589,0.0002026,2]
[321909300,1712613032675,-448.75,0.00020261,2]